Cogmind - Beta 14 @@@ ROGUE MODE // 2024.09.26 @ 12:00:42 Player: Some Pennies Result: Destroyed by 7A-9PP(R) with Subdweller Beam Cannon Performance ------------- Evolutions (0) 0 Regions Visited (2) 400 Robots Destroyed (49) 245 Value Destroyed (1214) 1214 Prototype IDs (0) 0 Alien Tech Used (0) 0 Bonus (0) 0 TOTAL SCORE: 1859 Bonus ------- None Cogmind --------- Core Integrity 0/250 Matter 296/300 Energy 242/265 System Corruption 0% Temperature Cool (9) Movement Rolling (136) Ox3 Location -10/Subcaves Parts ------- > --- POWER (1) -------- Improved Ion Engine > --- PROPULSION (2) --- Armored Wheel Subdweller Monowheel > --- UTILITY (2) ------ Huge Storage Unit Makeshift Thermal Plating > --- WEAPON (2) ------- Subdweller Laser Subdweller Machine Gun > --- INVENTORY (25) --- Ion Engine Ion Engine Ion Engine Improved Ion Engine Improved Ion Engine Improved Ion Engine Light Nuclear Core Heat Sink Medium Storage Unit Signal Interpreter Improved Terrain Scanner Seismic Detector Transport Network Coupler Hacking Suite Light EM Pulse Cannon Light EM Pulse Cannon Assault Rifle EMP Blaster Grenade Launcher Maul Peak State ------------ > --- POWER ------------ Improved Ion Engine > --- PROPULSION ------- Armored Wheel Subdweller Monowheel > --- UTILITY ---------- Huge Storage Unit Makeshift Thermal Plating > --- WEAPON ----------- Subdweller Laser Subdweller Machine Gun > --- INVENTORY -------- Ion Engine Ion Engine Ion Engine Improved Ion Engine Improved Ion Engine Improved Ion Engine Light Nuclear Core Heat Sink Medium Storage Unit Signal Interpreter Improved Terrain Scanner Seismic Detector Transport Network Coupler Hacking Suite Light EM Pulse Cannon Light EM Pulse Cannon Assault Rifle EMP Blaster Grenade Launcher Maul [Rating: 18] Favorites ----------- Power Improved Ion Engine Engine Improved Ion Engine Propulsion Light Treads Treads Light Treads Wheel Armored Wheel Utility Huge Storage Unit Device Seismic Detector Storage Huge Storage Unit Protection Makeshift Thermal Plating Weapon Assault Rifle Energy Gun Subdweller Laser Energy Cannon Beam Cannon Ballistic Gun Assault Rifle Launcher Grenade Launcher Special Weapon Mining Laser Impact Weapon Maul Build | -11 -10 -10 ------- Run | Yrd Mat Sub Slots Evolved . | . . . Power . | . . . Propulsion . | . . . Utility . | . . . Weapon . | . . . Parts Attached 49 | 7 25 17 Power 5 | 1 4 . Engine 5 | 1 4 . Core . | . . . Reactor . | . . . Propulsion 7 | 2 2 3 Treads 4 | 2 2 . Leg . | . . . Wheel 3 | . . 3 Hover . | . . . Flight . | . . . Utility 13 | 2 6 5 Device 9 | 1 4 4 Storage 3 | 1 2 . Processor . | . . . Hackware . | . . . Protection 1 | . . 1 Artifact . | . . . Weapon 24 | 2 13 9 Energy Gun 1 | . . 1 Energy Cannon 5 | . 3 2 Ballistic Gun 10 | 2 4 4 Ballistic Cannon . | . . . Launcher 2 | . 2 . Special Weapon 1 | . 1 . Impact Weapon 5 | . 3 2 Slashing Weapon . | . . . Piercing Weapon . | . . . Special Melee Weapon . | . . . Unidentified Prototypes . | . . . Parts Lost 9 | . 3 6 Power . | . . . Propulsion 5 | . 2 3 Utility 1 | . 1 . Weapon 3 | . . 3 Highest Loss Streak 4 | . 3 4 To Critical Strikes . | . . . Average Slot Usage (%) 99 | . 99 99 Engine 14 | . 14 14 Treads 24 | . 27 15 Wheel 3 | . . 12 Device 12 | . 14 8 Storage 14 | . 14 14 Protection 1 | . . 5 Energy Cannon 7 | . . 22 Ballistic Gun 19 | . 26 2 Peak Build Rating 18 | 7 12 18 Average Rating 10 | 5 10 13 On Entrance 6 | . 7 11 Naked Turns . | . . . Heaviest Build 99 | 13 94 99 Greatest Support 40 | 40 40 40 Greatest Overweight (x) 7 | . 2 7 Average Overweight (x) 1 | . 1 3 Largest Inventory Capacity 25 | 8 25 25 Average Capacity 21 | 7 20 25 Most Carried 25 | 5 25 24 Average Carried 19 | 2 19 22 Final Capacity 25 | 8 25 25 Final Carried 21 | 5 21 20 Class Distribution -------------------- 100% | Mutant Dominant Class ---------------- Mutant | -10/Materials Mutant | -10/Subcaves Resources | -11 -10 -10 ----------- Run | Yrd Mat Sub Matter Collected 1366 | 288 831 247 Remotely . | . . . Salvage Created 1750 | 124 1207 419 Parts 121 | 9 82 30 Haulers Intercepted 2 | . 2 . Recyclers Shooed . | . . . Parts Field Recycled . | . . . Retrieved Matter . | . . . Parts Self-Destructed 6 | . . 6 Prevented . | . . . Kills | -11 -10 -10 ------- Run | Yrd Mat Sub Combat Hostiles Destroyed 33 | . 23 10 Guns 23 | . 20 3 Cannons 7 | . . 7 AOE 3 | . 3 . Classes Destroyed 12 | 2 8 2 Worker 5 | . 5 . Builder 1 | . 1 . Tunneler 3 | 2 1 . Hauler 2 | . 2 . Recycler 1 | 1 . . Mechanic 1 | . 1 . Operator 1 | . 1 . Watcher 2 | . 2 . Swarmer 5 | . 5 . Grunt 20 | . 18 2 Artisan 1 | . . 1 Subdweller 8 | . . 8 Best Kill Streak 5 | 3 5 2 Combat Bots Only 4 | . 4 2 Max Kills in Single Turn 1 | 1 1 1 Gunslinging . | . . . Exploded 1 | . 1 . Melee . | . . . Uniques/NPCs Destroyed . | . . . Combat | -11 -10 -10 -------- Run | Yrd Mat Sub Hostile Shots Fired 139 | . 89 50 Missed 41 | . 28 13 Damage Taken 1741 | . 730 1011 Core 260 | . 59 201 Absorbed by Shields . | . . . Ignored by Resistances 42 | . . 42 Core Remaining (%) 100 | 100 . . Volleys Fired 145 | 3 109 33 Largest 2 | 2 2 2 Hottest 120 | 40 100 120 Shots Fired 276 | 6 204 66 Gun 223 | 6 190 27 Cannon 39 | . . 39 Launcher 13 | . 13 . Special 1 | . 1 . Kinetic 216 | 6 190 20 Thermal 47 | . 1 46 Explosive 5 | . 5 . Electromagnetic 8 | . 8 . Robot Hit Streak 19 | 3 9 19 Robot Miss Streak 4 | 1 4 3 Penetration Max . | . . . Secondary Targets 4 | . 4 . Max Gunslinging Chain 1 | . 1 . Shots Hit Robots 164 | 4 110 50 Core Hits 81 | 4 57 20 Critical Kills 1 | . 1 . Critical Parts Destroyed . | . . . Critical Strikes 1 | . 1 . Destroy 1 | . 1 . Melee Attacks 8 | . 3 5 Impact 8 | . 3 5 Slashing . | . . . Piercing . | . . . Sneak Attacks . | . . . Combat Hostiles . | . . . Follow-up Attacks . | . . . Damage Inflicted 2800 | 53 1838 909 Guns 1818 | 53 1447 318 Cannons 591 | . . 591 Explosions 391 | . 391 . Melee . | . . . Ramming . | . . . Kinetic 1777 | 53 1447 277 Thermal 632 | . . 632 Explosive 58 | . 58 . Electromagnetic 333 | . 333 . Impact . | . . . Slashing . | . . . Piercing . | . . . Highest Corruption . | . . . Average Corruption . | . . . Corruption Purged . | . . . Corruption Blocked . | . . . Overload Shots . | . . . Overflow Damage 2 | . 2 . Projectiles . | . . . Explosions 2 | . 2 . Melee . | . . . Knockbacks . | . . . Impact . | . . . Kinetic . | . . . Secondary . | . . . Self-Inflicted Damage 8 | . 8 . Shots 1 | . 1 . Rammed . | . . . Targets Rammed . | . . . Kicked . | . . . Crushed . | . . . Highest Temperature 48 | . 30 48 Average Temperature 18 | . 10 24 Received Heat Transfer 561 | . 339 222 Siege Activations . | . . . Robots Corrupted . | . . . Combat Hostiles . | . . . Parts Fried 4 | . 4 . Impact Corruptions . | . . . Robots Melted . | . . . Combat Hostiles . | . . . Parts Melted 5 | . . 5 Heat Transferred 1308 | . . 1308 Parts Sabotaged . | . . . Parts Stolen . | . . . Parts Stripped . | . . . Power Chain Reactions . | . . . Alert | -11 -10 -10 ------- Run | Yrd Mat Sub Peak Influence 283 | 15 283 . Initial 9 | . 9 . Average 138 | 6 143 . Maximum Alert Level 1 | . 1 . Low Security (%) 74 | 100 73 . Level 1 25 | . 26 . Level 2 . | . . . Level 3 . | . . . Level 4 . | . . . Level 5 . | . . . High Security . | . . . Max Security . | . . . Squads Dispatched 5 | . 5 . Investigation 4 | . 4 . Extermination . | . . . Reinforcement 1 | . 1 . Assault . | . . . Garrison . | . . . Intercept . | . . . Searches Triggered . | . . . Construction Impeded . | . . . Haulers Reinforced . | . . . Active Scanning Responses . | . . . Cargo Convoy Interrupts . | . . . Stealth | -11 -10 -10 --------- Run | Yrd Mat Sub Distress Signals 3 | . 3 . Communications Jammed . | . . . Distress Signals . | . . . Times Spotted 53 | . 41 12 Peak Tracking Total 5 | . 5 2 Tactical Retreats 2 | . 2 . Traps | -11 -10 -10 ------- Run | Yrd Mat Sub Traps Triggered 4 | . 4 . Indirectly 1 | . 1 . Trap Hack Attempts . | . . . Triggered . | . . . Disarmed . | . . . Reprogrammed . | . . . Reused . | . . . Traps Extracted . | . . . Installed . | . . . Triggered . | . . . Machines | -11 -10 -10 ---------- Run | Yrd Mat Sub Machines Disabled 1 | . 1 . Max in Single Turn 1 | . 1 . Machines Repaired . | . . . Machines Dismantled . | . . . Machines Sabotaged . | . . . Overloaded Fab Kills . | . . . Hacking | -11 -10 -10 --------- Run | Yrd Mat Sub Machines Accessed 8 | . 8 . Terminals 6 | . 6 . Fabricators . | . . . Repair Stations . | . . . Recycling Units 2 | . 2 . Scanalyzers . | . . . Garrison Access . | . . . Total Hacks 27 | . 27 . Successful 14 | . 14 . Failed 12 | . 12 . Catastrophic 1 | . 1 . Database Lockouts 1 | . 1 . Manual 25 | . 25 . Terminals 24 | . 24 . Fabricators . | . . . Repair Stations . | . . . Recycling Units 3 | . 3 . Scanalyzers . | . . . Garrison Access . | . . . Terminal Hacks 3 | . 3 . Robot Analysis 1 | . 1 . Terminal Index 1 | . 1 . Zone Layout 1 | . 1 . Fabricator Hacks . | . . . Repair Station Hacks . | . . . Recycling Unit Hacks 2 | . 2 . Retrieve Components 2 | . 2 . Scanalyzer . | . . . Garrison Access Hacks . | . . . Unauthorized Hacks 9 | . 9 . Terminals 8 | . 8 . Botnet 2 | . 2 . Operators 1 | . 1 . Skim 5 | . 5 . Fabricators . | . . . Repair Stations . | . . . Recycling Units 1 | . 1 . Tunnel 1 | . 1 . Scanalyzers . | . . . Garrison Access . | . . . Data Cores Recovered . | . . . Used . | . . . Hacking Detections 8 | . 8 . Full Trace Events . | . . . Feedback Events . | . . . Feedback Blocked . | . . . Robot Schematics Acquired . | . . . Robots Built . | . . . Authchips . | . . . Time . | . . . Total Robot Build Rating . | . . . Part Schematics Acquired . | . . . Parts Built . | . . . Authchips . | . . . Time . | . . . Total Part Build Rating . | . . . Parts Repaired . | . . . Time . | . . . Parts Recycled . | . . . Recycled Matter . | . . . Retrieved Matter . | . . . Retrieved Components 10 | . 10 . Parts Scanalyzed . | . . . Part Schematics Acquired . | . . . Parts Damaged . | . . . Bothacking | -11 -10 -10 ------------ Run | Yrd Mat Sub Used RIF Installer . | . . . Robots Hacked . | . . . Non-combat . | . . . Combat . | . . . Robot Hacks Applied . | . . . Relay Couplers Released . | . . . Fabnet Peak Effective % . | . . . Robots Rewired . | . . . Allies Hacked . | . . . Hacks Repelled . | . . . Allies | -11 -10 -10 -------- Run | Yrd Mat Sub Total Allies . | . . . Largest Group . | . . . Highest-Rated Group . | . . . Highest-Rated Ally . | . . . Total Orders . | . . . Ally Attacks . | . . . Total Damage . | . . . Kills . | . . . Allies Corrupted . | . . . Allies Melted . | . . . Intel | -11 -10 -10 ------- Run | Yrd Mat Sub Robot Analysis Total 1 | . 1 . Derelict Logs Recovered . | . . . Drone Launches . | . . . Drone Recoveries . | . . . Exploration | -11 -10 -10 ------------- Run | Yrd Mat Sub Turns Passed 4305 | 120 2935 1250 Spaces Moved 1494 | 61 960 473 Core 1 | 1 . . Treads 1171 | 60 960 151 Legs . | . . . Wheels 322 | . . 322 Hover . | . . . Flight . | . . . Fastest Speed 50 | 50 160 136 Average Speed 237 | 158 258 206 Slowest Speed 480 | 160 320 480 Overloaded Moves . | . . . Propulsion Burnouts . | . . . Robots Hopped . | . . . Cave-ins Triggered . | . . . Exploration Rate (%) 45 | 5 98 34 Regions Visited 2 Branch Regions 1 Pre-discovered Areas 3 | . 3 . Known Exits Taken 1 | . 1 . Unknown Exits Taken 1 | 1 . . Scrap Searched 1 | . . 1 Spaces Dug 13 | . 13 . Terrain Destroyed 48 | . 48 . Melee 3 | . 3 . Projectile 1 | . 1 . AOE 44 | . 44 . Terrain Rammed . | . . . Walls Destroyed . | . . . Machines Disabled . | . . . Actions | -11 -10 -10 --------- Run | Yrd Mat Sub Total 1951 | 75 1207 669 Wait 207 | . 71 136 Move 1492 | 60 959 473 Hop . | . . . Pick Up 36 | 5 26 5 Fast Attach 7 | 7 . . Attach 11 | . 5 6 Detach . | . . . Swap 31 | . 20 11 Drop 14 | . 14 . Fire 145 | 3 109 33 Melee 8 | . 3 5 Ram . | . . . Kick . | . . . Crush . | . . . Escape Stasis . | . . . Rewire . | . . . Trap . | . . . Miscellaneous . | . . . Route ------- -11/Scrapyard -10/Materials (discovered 6 exits: *Mat x3 / [*Min x2] / *Sub) -10/Subcaves (discovered 2 exits: [*Mat] / Rec) History --------- Turn | Location | Event 48 | -11/Scrapyard | Discovered new exit (range 16) 121 | -11/Scrapyard | Entered Materials 314 | -10/Materials | Build established: Mutant 385 | -10/Materials | Discovered new exit (range 3) 591 | -10/Materials | Discovered new exit (range 16) 794 | -10/Materials | Central database locked down 877 | -10/Materials | Discovered new exit (range 15) 1126 | -10/Materials | Learned Storage trap positions 1276 | -10/Materials | Identified exit to Materials 1334 | -10/Materials | Learned Storage stockpile data 1382 | -10/Materials | Learned location of Subcaves (-10) 1465 | -10/Materials | Learned 4 Recycling zone layouts 1522 | -10/Materials | Identified exit to Subcaves 1588 | -10/Materials | Learned Storage stockpile data 2744 | -10/Materials | Discovered exit to Materials (range 7) 2939 | -10/Materials | Lost 3 parts (2n1u) 3056 | -10/Materials | Entered Subcaves 3057 | -10/Subcaves | Identified exit to Recycling 3840 | -10/Subcaves | Ambushed by angry Subdweller bent on revenge 3939 | -10/Subcaves | Core integrity fell below 50% 3990 | -10/Subcaves | Discovered new exit (range 10) 4106 | -10/Subcaves | Core integrity fell below 20% 4142 | -10/Subcaves | Lost 4 parts (1n3w) 4303 | -10/Subcaves | Disturbed a concealed Subdweller 4306 | -10/Subcaves | Destroyed by 7A-9PP(R) with Subdweller Beam Cannon Last Messages --------------- 04124_ CV-07Y(R) destroyed. 04130_ Acquired 13 matter. 04132_ Acquired Sub. Laser. 04136_ Acquired 11 matter. 04236_ G-34 Mercenary destroyed. 04240_ Sml. Laser fries itself beyond repair. 04242_ Aluminum Leg fries itself beyond repair. 04250_ G-47 Trooper destroyed. 04257_ Imp. Heat Sink fries itself beyond repair. 04258_ Lgt. Nuclear Core fries itself beyond repair. 04259_ Acquired 35 matter. 04261_ Particle Gun fries itself beyond repair. 04263_ Acquired 28 matter. 04300_ Searching scrap... 04300_ Found Sub. Machine Gun. 04300_ Found 34 Matter. 04303_ 7A-9PP(R) angrily emerges from the Twisted Machinery. Map ----- +----------------------------------------------------+ | | | | | | | | | | | | | | | | | | | | | | | | | ?????????????????????????????????????????????????? | | ?????????????????????????????????????????????????? | | ?????????????????????????????????????????????????? | | ?????????????????????????????????????????????????? | | ?????????????????????????????????????????????????? | | ?????????????????????????????????????????????????? | | ?????????????????????????????????????????????????? | | ?????????????????????????????????????????????????? | | ?????????????????????????????????????????????????? | | ?????????????????????????????????????????????????? | | ?????????????????????????????????????????????????? | | ?????????????????????????????????????????????????? | | ??????????????????????#######????????????????????? | | ??????????????????????#